bitfinex/quotes_ETHUSD_20241003
["timestamp","ask_amount","ask_price","bid_price","bid_amount"]
[1727922423189,4.17632,2394.5,2394.1,1.64598325]
[1727922423393,4.17632,2394.5,2394.1,0.7702]
[1727922423586,3.37735019,2394.4,2393.9,0.87578325]
[1727922423836,3.37735019,2394.4,2393.6,6.69174533]
[1727922423837,4.17702,2394.1,2393.6,5.82368325]
[1727922424015,4.17713,2394.0,2393.6,0.7702]
[1727922424609,8.3538,2394.2,2393.6,4.94787]
[1727922425139,4.17703,2394.1,2393.6,4.94787]
[1727922425858,4.17703,2394.1,2393.2,5.47191784]
[1727922425859,4.17747,2393.8,2393.4,0.754]
[1727922426218,4.17747,2393.8,2393.4,4.93213]
[1727922426732,4.17747,2393.8,2393.4,0.754]
[1727922427044,4.80356,2394.2,2393.5,4.17788]
[1727922427218,4.17654,2394.4,2393.6,0.754]
[1727922427419,4.17654,2394.4,2394.0,0.754]
[1727922428045,4.17618,2394.6,2394.0,0.754]
[1727922428294,4.17618,2394.6,2394.1,4.17693]
[1727922428295,8.35234,2394.6,2394.1,4.17693]
[1727922430116,4.17616,2394.6,2394.0,0.754]
[1727922430362,4.17642,2394.4,2394.0,0.754]
[1727922430527,4.17661,2394.3,2394.0,0.754]
[1727922430731,4.17661,2394.3,2393.7,4.52795502]
[1727922431053,4.17661,2394.3,2393.8,5.4405255]
[1727922431215,4.80312,2394.4,2393.9,4.17727]
[1727922431421,4.80312,2394.4,2393.8,1.2630955]
[1727922431620,4.17669,2394.3,2393.8,4.98772]
[1727922431844,4.17685,2394.2,2393.8,0.8103]
[1727922432060,8.35372,2394.2,2393.8,0.8103]
[1727922432259,4.17704,2394.1,2393.8,0.8103]
[1727922432428,4.17685,2394.2,2393.5,4.98815]
[1727922432632,4.17711,2394.0,2393.5,4.98815]
[1727922433283,4.17711,2394.0,2393.6,4.17779]
[1727922433570,8.35377,2394.2,2393.6,4.17779]
[1727922434173,4.17714,2394.0,2393.5,9.16604]
[1727922434747,4.1771,2394.1,2393.6,4.17769]
[1727922435066,4.1771,2394.1,2393.6,5.094294]
[1727922435439,4.80383,2394.0,2393.5,4.98815]
[1727922436274,0.6267,2394.0,2393.5,4.98815]
[1727922436480,0.6267,2394.2,2393.7,4.1776]
[1727922436678,4.17671,2394.3,2393.8,0.7695]
[1727922436982,4.17671,2394.3,2393.8,4.94687]
[1727922437990,4.17671,2394.3,2393.8,0.7695]
[1727922438153,4.17679,2394.2,2393.8,4.94695]
[1727922438577,4.17671,2394.3,2393.8,4.94695]
[1727922438783,4.17671,2394.3,2393.8,0.7695]
[1727922438964,4.17681,2394.2,2393.8,0.7695]
[1727922440711,4.17681,2394.2,2393.8,4.94693]
[1727922441011,4.17681,2394.2,2393.8,0.7695]
[1727922443720,2.75065019,2394.2,2393.6,0.7694]
[1727922443925,4.17724,2394.0,2393.6,0.7694]
[1727922444122,4.80406,2393.9,2393.2,0.7694]
[1727922444298,4.17763,2393.7,2393.2,0.7694]
[1727922444496,4.1781,2393.5,2392.9,4.17899]
[1727922444699,0.6267,2393.6,2393.0,0.7694]
[1727922444943,4.17747,2393.8,2393.2,0.7714]
[1727922445234,4.17747,2393.8,2393.3,8.851475]
[1727922445435,4.17747,2393.8,2393.2,0.7714]
[1727922445603,4.17747,2393.8,2393.3,4.17822]
[1727922446136,0.6267,2394.2,2393.4,0.7962]
[1727922446297,4.1776,2393.8,2393.4,0.7962]
[1727922447408,4.1776,2393.8,2393.4,4.97435]
[1727922447606,4.1776,2393.8,2393.4,0.7962]
[1727922447812,4.1776,2393.8,2393.4,4.97435]
[1727922448012,4.1776,2393.8,2393.4,0.7962]
[1727922448409,4.17724,2394.0,2393.4,0.7962]
[1727922448641,4.1773,2393.9,2393.4,4.97425]
[1727922448823,4.17755,2393.8,2393.4,0.7962]
[1727922449942,4.17755,2393.8,2393.4,4.97434]
[1727922450596,4.17729,2393.9,2393.5,4.17795]
[1727922450796,8.35467,2393.9,2393.4,4.97434]
[1727922451037,4.17729,2393.9,2393.4,4.97434]
[1727922451911,4.17729,2393.9,2393.4,4.97427]
[1727922452101,4.17729,2393.9,2393.4,9.15232]
[1727922452739,4.17729,2393.9,2393.5,4.17795]
[1727922453441,4.17711,2394.0,2393.6,4.17778]
[1727922453798,4.17711,2394.0,2393.5,4.17795]
[1727922454445,4.17711,2394.0,2393.5,8.35582]
[1727922454940,4.17711,2394.0,2393.5,8.35574]
[1727922455102,4.17711,2394.0,2393.6,4.17778]
[1727922456009,4.72704,2394.1,2393.6,4.17778]
[1727922456210,4.72704,2394.1,2393.5,4.17787]
[1727922456515,8.90404,2394.1,2393.6,4.17773]
[1727922456717,4.72702,2394.1,2393.6,4.17773]
[1727922457102,8.90404,2394.1,2393.6,4.17773]
[1727922457301,4.17702,2394.1,2393.7,4.17762]
[1727922457536,4.17676,2394.2,2393.8,0.807]
[1727922459047,4.17694,2394.1,2393.8,0.807]
[1727922460718,8.354,2394.1,2393.8,0.807]
[1727922461120,4.17723,2394.0,2393.8,0.807]
[1727922461325,4.17723,2394.0,2393.6,4.96747]
[1727922462871,4.17694,2394.1,2393.6,4.96747]
[1727922463026,8.35396,2394.1,2393.6,4.96747]
[1727922463555,4.17694,2394.1,2393.6,4.96747]
[1727922464818,4.17694,2394.1,2393.7,4.17762]
[1727922465904,4.17694,2394.1,2393.6,0.7897]
[1727922465905,8.35399,2394.1,2393.6,0.7897]
[1727922466079,8.35399,2394.1,2393.6,4.96749]
[1727922466355,4.17694,2394.1,2393.6,4.96749]
[1727922469419,8.35397,2394.1,2393.6,4.96749]
[1727922470040,4.17694,2394.1,2393.6,4.96749]
[1727922470935,8.0167,2394.4,2394.1,0.7546]
[1727922470936,7.39,2394.4,2394.1,0.7546]
[1727922471179,11.56641,2394.4,2393.9,0.7546]
[1727922471379,4.17686,2394.2,2393.7,4.93213]
[1727922473275,4.17686,2394.2,2393.7,0.7546]
[1727922473483,4.17686,2394.2,2393.8,4.17744]
[1727922473848,6.07303721,2394.3,2393.8,4.17744]
[1727922475309,6.07303721,2394.3,2393.8,8.3548]
[1727922476395,6.07303721,2394.3,2393.9,4.17725]
[1727922477160,1.89629721,2394.3,2394.0,4.1771]
[1727922477806,1.26959721,2394.5,2394.1,4.17692]
[1727922478013,3.0,2394.5,2394.2,4.96245]
[1727922478310,0.6267,2394.7,2394.2,1.282045]
[1727922478468,0.43657246,2394.8,2394.6,4.17595]
[1727922478805,0.6267,2394.9,2394.6,4.17599]
[1727922479761,3.6267,2394.9,2394.6,4.17599]
[1727922479962,3.6267,2394.9,2394.5,8.35228]
[1727922480198,3.6267,2394.9,2394.6,4.17604]
[1727922481172,3.6267,2394.9,2394.5,4.17613]
[1727922481372,3.6267,2394.9,2394.5,8.35227]
[1727922482329,3.6267,2394.9,2394.5,8.35229]
[1727922482611,3.6267,2394.9,2394.5,4.17613]
[1727922482797,1.26959721,2394.8,2394.3,4.17644]
[1727922483110,0.6267,2394.5,2394.1,8.35364]
[1727922483294,1.26959721,2394.4,2394.1,4.17681]
[1727922483509,1.26959721,2394.4,2394.1,8.35365]
[1727922484193,1.26959721,2394.4,2394.2,4.17671]
[1727922484398,0.6267,2394.5,2394.2,4.17671]
[1727922485277,1.26959721,2394.4,2393.9,4.17714]
[1727922485481,7.17648,2394.4,2393.9,4.17714]
[1727922485680,7.17648,2394.4,2394.0,4.17696]
[1727922485681,3.0,2394.4,2394.0,4.17696]
[1727922486820,7.17645,2394.4,2394.0,4.17696]
[1727922487027,3.0,2394.4,2394.0,4.17696]
[1727922487330,0.55,2393.9,2393.5,4.1779]
[1727922487483,0.55,2393.9,2393.4,4.17804]
[1727922488000,4.72733,2393.9,2393.4,4.17804]
[1727922490328,4.72733,2393.9,2393.3,0.8172]
[1727922490490,4.17763,2393.7,2393.3,4.99551]
[1727922490689,4.72733,2393.9,2393.3,4.99551]
[1727922491026,4.17748,2393.8,2393.3,4.99551]
[1727922491684,4.17748,2393.8,2393.2,4.17839]
[1727922491884,0.6267,2393.7,2393.2,8.35673]
[1727922492130,0.6267,2393.7,2393.3,4.17829]
[1727922495851,0.6267,2393.7,2393.4,4.17814]
[1727922496082,0.6267,2393.7,2393.4,8.3562]
[1727922496254,0.6267,2393.7,2393.4,4.17809]
[1727922496920,0.6267,2393.7,2393.4,8.35618]
[1727922497105,0.6267,2393.7,2393.4,4.17809]
[1727922497613,0.6267,2393.7,2393.4,4.17806]
[1727922498319,0.6267,2393.7,2393.4,8.35612]
[1727922498649,0.6267,2393.7,2393.4,4.17806]
[1727922500260,0.6267,2393.7,2393.4,8.35611]
[1727922504186,0.6267,2393.7,2393.5,4.17796]
[1727922505082,7.72729,2393.9,2393.5,4.17796]
[1727922505747,8.0167,2394.2,2393.8,4.17744]
[1727922506046,8.0167,2394.2,2393.8,4.94658]
[1727922506240,8.0167,2394.2,2393.8,9.12392]
[1727922506448,8.0167,2394.2,2393.9,4.17727]
[1727922506858,7.39,2394.2,2394.0,4.17708]
[1727922507069,4.17644,2394.4,2394.0,4.17708]
[1727922507289,7.39,2394.7,2394.2,4.17667]
[1727922507290,4.17597,2394.7,2394.2,4.17667]
[1727922507500,0.6267,2394.7,2394.3,4.17657]
[1727922507816,1.26904439,2394.6,2394.3,4.17657]
[1727922508462,1.26904439,2394.6,2394.2,0.8284]
[1727922508656,4.8027,2394.7,2394.0,0.912355]
[1727922508657,1.26904439,2394.4,2394.0,4.97582]
[1727922508902,0.6267,2394.3,2393.9,4.17727]
[1727922509677,0.6267,2394.3,2394.0,4.1771]
[1727922511679,0.6267,2394.3,2393.8,4.97617]
[1727922512112,4.17701,2394.1,2393.7,4.17761]
[1727922513312,0.6267,2394.0,2393.6,4.17771]
[1727922518377,4.17701,2394.1,2393.7,4.17761]
[1727922519295,4.17701,2394.1,2393.8,0.7711]
[1727922519700,9.62242439,2394.3,2393.8,4.94847]
[1727922520122,5.44571439,2394.3,2393.8,4.94847]
[1727922520294,5.44571439,2394.3,2393.8,0.7711]
[1727922520295,4.1769,2394.2,2393.8,0.7711]
[1727922521083,4.17694,2394.1,2393.8,0.7711]
[1727922521924,4.17694,2394.1,2393.6,4.94881]
[1727922522445,0.6267,2394.0,2393.6,4.94881]
[1727922524415,0.6267,2394.0,2393.6,9.12653]
[1727922528444,0.6267,2394.0,2393.7,4.17762]
[1727922534358,4.80384,2394.0,2393.5,4.17789]
[1727922535045,4.80384,2394.0,2393.6,4.1778]
[1727922543980,0.6267,2394.0,2393.7,4.17754]
[1727922544182,4.17676,2394.2,2393.7,4.17754]
[1727922544183,4.17676,2394.2,2393.8,5.012904]
[1727922544336,4.17676,2394.2,2393.8,4.17737]
[1727922545130,4.17676,2394.2,2393.7,0.7549]
[1727922545131,4.17676,2394.2,2393.7,4.9324]
[1727922545944,8.35364,2394.2,2393.7,4.9324]
[1727922546144,4.17695,2394.1,2393.7,5.97032044]
[1727922546648,4.17695,2394.1,2393.7,5.97042044]
[1727922547334,4.1772,2394.0,2393.7,1.79282044]
[1727922547749,4.1772,2394.0,2393.7,0.7549]
[1727922550647,4.80365,2394.1,2393.7,0.7549]
[1727922550868,8.9807,2394.1,2393.7,0.7549]
[1727922551068,4.80365,2394.1,2393.7,0.7549]
[1727922551275,4.17713,2394.0,2393.7,0.7549]
[1727922553990,4.17713,2394.0,2393.6,4.17776]
[1727922555283,4.80365,2394.1,2393.6,4.17776]
[1727922555449,4.80365,2394.1,2393.7,4.17761]
[1727922556154,4.17678,2394.2,2393.8,4.95304]
[1727922556562,4.17678,2394.2,2393.8,0.7756]
[1727922556750,4.17695,2394.1,2393.8,0.7756]
[1727922558608,8.98072,2394.1,2393.6,4.95137]
[1727922558781,4.80365,2394.1,2393.6,6.29282453]
[1727922559099,4.80365,2394.1,2393.6,7.16860778]
[1727922560599,4.80365,2394.1,2393.7,4.17755]
[1727922560895,4.17695,2394.1,2393.7,4.17755]
[1727922561259,8.35398,2394.1,2393.7,4.17755]
[1727922561454,4.17695,2394.1,2393.7,4.17755]
[1727922561999,8.35398,2394.1,2393.7,5.05333325]
[1727922562200,4.17695,2394.1,2393.7,4.17755]
[1727922562400,4.17695,2394.1,2393.7,5.05333325]
[1727922562605,4.17695,2394.1,2393.7,4.17755]
[1727922563671,4.17695,2394.1,2393.7,5.05333325]
[1727922564212,4.17695,2394.1,2393.7,4.17755]
[1727922565120,4.17712,2394.0,2393.6,7.16861778]
[1727922565310,4.17712,2394.0,2393.6,5.82716325]
[1727922566002,8.35404,2394.1,2393.6,5.82716325]
[1727922566403,4.17695,2394.1,2393.6,5.82716325]
[1727922567287,4.17695,2394.1,2393.6,6.8988497]
[1727922568512,4.80343,2394.3,2393.7,4.17762]
[1727922568513,4.17677,2394.2,2393.7,4.17762]
[1727922568824,1.26904439,2394.5,2394.2,4.93165]
[1727922568825,3.0,2394.5,2394.2,4.93165]
[1727922569002,4.17613,2394.6,2394.2,4.93165]
[1727922569626,8.35227,2394.6,2394.2,4.93165]
[1727922569776,4.17613,2394.6,2394.2,0.7549]
[1727922569978,4.17626,2394.5,2394.2,0.7549]
[1727922570517,4.17613,2394.6,2394.2,4.93165]
[1727922570811,4.17613,2394.6,2394.2,1.53712982]
[1727922571016,8.3523,2394.6,2394.2,0.7549]
[1727922571178,4.17629,2394.5,2394.2,0.7549]
[1727922574596,4.17645,2394.4,2394.2,0.7549]
[1727922574816,4.17645,2394.4,2394.0,0.8002]
[1727922574817,4.17653,2394.4,2394.0,0.8002]
[1727922575027,4.17683,2394.2,2393.8,0.7948]
[1727922575795,4.17683,2394.2,2393.8,4.97223]
[1727922576642,5.44557439,2394.4,2393.8,4.97223]
[1727922576839,4.17661,2394.3,2393.8,4.97223]
[1727922579912,4.17661,2394.3,2393.9,4.17726]
[1727922580128,4.17643,2394.4,2393.9,4.17726]
[1727922580427,4.17643,2394.4,2394.0,0.7728]
[1727922583665,4.17666,2394.3,2394.0,0.7728]
[1727922584015,4.17643,2394.4,2394.0,4.9499]
[1727922584228,5.44524439,2394.6,2394.0,4.9499]
[1727922584229,4.17614,2394.6,2394.2,4.17665]
[1727922584428,3.0,2394.5,2394.2,4.95255]
[1727922586936,3.0,2394.5,2394.2,0.7759]
[1727922587133,3.6267,2394.5,2393.8,0.8305]
[1727922587337,0.6267,2394.5,2393.9,8.35436]
[1727922587567,3.0,2394.5,2394.1,5.00733]
[1727922587926,4.17618,2394.6,2394.1,5.00733]
[1727922588123,4.17618,2394.6,2394.2,4.17674]
[1727922588327,3.0,2394.7,2394.3,5.00698]
[1727922588630,4.17586,2394.8,2394.4,5.00687]
[1727922588858,4.17586,2394.8,2394.4,6.0170457]
[1727922589230,4.17586,2394.8,2394.4,1.8406757]
[1727922589549,4.1759,2394.7,2394.4,0.8305]
[1727922590573,4.17551,2395.0,2394.4,5.00674]
[1727922590778,4.17551,2395.0,2394.1,1.26904439]
[1727922590779,7.17512,2395.2,2394.7,4.96336]
[1727922591071,4.17485,2395.3,2394.8,4.1757]
[1727922591267,4.17485,2395.3,2394.9,0.7875]
[1727922591428,4.17481,2395.4,2394.9,0.7875]
[1727922591429,4.17509,2395.2,2394.9,0.7875]
[1727922592256,8.34959,2395.4,2394.9,1.29217972]
[1727922592477,4.17476,2395.4,2394.9,4.68008972]
[1727922592644,4.17476,2395.4,2395.0,0.7875]
[1727922593330,8.34952,2395.4,2395.0,0.7875]
[1727922593531,4.17476,2395.4,2395.0,0.7875]
[1727922593934,4.17476,2395.4,2395.0,1.34260907]
[1727922594760,8.34955,2395.4,2395.0,1.34260907]
[1727922595174,4.17476,2395.4,2395.0,1.34260907]
[1727922595337,4.17476,2395.4,2395.0,0.7875]
[1727922595980,8.34959,2395.4,2395.0,0.7875]
[1727922596161,4.17476,2395.4,2395.0,0.7875]
[1727922596368,4.17454,2395.5,2395.1,0.7751]
[1727922596576,4.17433,2395.6,2395.3,0.7751]
[1727922597440,4.17415,2395.7,2395.3,0.7751]
[1727922597650,4.17415,2395.7,2395.4,0.7751]
[1727922597874,4.17431,2395.6,2395.4,0.7751]
[1727922598851,4.17415,2395.7,2395.4,0.7751]
[1727922599077,8.34819,2395.8,2395.4,0.7751]
[1727922599798,4.17417,2395.7,2395.4,0.7751]
[1727922600291,4.17379,2395.9,2395.4,4.94975]
[1727922600498,10.39,2396.2,2394.9,4.68017972]
[1727922600499,0.6267,2396.2,2395.7,1.26904439]
[1727922600685,8.34604,2396.4,2395.9,6.23145439]
[1727922600986,4.17301,2396.4,2395.9,6.23145439]
[1727922601171,4.17301,2396.4,2395.9,0.7887]
[1727922601172,4.1731,2396.3,2395.9,0.7887]
[1727922601377,4.17362,2396.0,2395.9,0.7887]
[1727922601686,4.17414,2395.7,2395.3,0.7948]
[1727922601896,4.17432,2395.6,2395.3,0.7948]
[1727922602196,4.17414,2395.7,2395.3,0.7948]
[1727922602976,4.17414,2395.7,2395.3,4.96962]
[1727922603174,4.17414,2395.7,2395.3,0.7948]
[1727922603376,4.1744,2395.6,2395.3,0.7948]
[1727922604451,4.17449,2395.5,2395.3,0.7948]
[1727922604647,4.17449,2395.5,2395.0,4.17524]
[1727922604648,4.80119,2395.5,2395.0,9.181]
[1727922605086,8.97514,2395.7,2395.1,4.17518]
[1727922605292,4.17432,2395.6,2395.1,4.17518]
[1727922605895,4.1748,2395.4,2395.0,0.8305]
[1727922606265,4.17485,2395.3,2395.0,0.8305]
[1727922607371,4.17451,2395.5,2395.0,5.00575]
[1727922607755,4.17467,2395.4,2395.0,0.8305]
[1727922607971,4.17451,2395.5,2395.0,0.8305]
[1727922608567,4.17474,2395.4,2395.0,0.8305]
[1727922609083,4.17451,2395.5,2395.0,5.00585]
[1727922609282,4.17451,2395.5,2395.0,9.18108]
[1727922609581,4.17451,2395.5,2395.0,5.00573]
[1727922610071,8.34911,2395.5,2395.0,5.00573]
[1727922611166,4.17451,2395.5,2395.0,9.18099]
[1727922611364,4.17451,2395.5,2395.0,5.00573]
[1727922611593,3.0,2395.6,2395.2,4.17501]
[1727922611894,7.17433,2395.6,2395.1,0.797]
[1727922612616,7.17433,2395.6,2395.1,4.9721]
[1727922614281,4.80129,2395.5,2394.9,0.797]
[1727922614517,4.17485,2395.3,2394.9,0.797]
[1727922615025,4.17502,2395.2,2394.9,0.797]
[1727922616128,4.17485,2395.3,2394.9,0.797]
[1727922616710,4.17529,2395.1,2394.6,0.7523]
[1727922616895,2.74681094,2395.4,2394.6,0.7523]
[1727922616896,4.17557,2394.9,2394.6,0.7523]
[1727922618097,4.17557,2394.9,2394.4,4.92867]
[1727922618295,4.17557,2394.9,2394.5,4.17623]
[1727922618525,4.17553,2395.0,2394.5,4.17623]
[1727922618857,8.35098,2395.0,2394.5,4.17623]
[1727922618982,4.17563,2394.9,2394.5,4.17623]
[1727922619294,7.54922094,2394.8,2394.3,4.96912]
[1727922619500,4.80241,2394.8,2394.3,4.96912]
[1727922619896,4.80241,2394.8,2394.3,9.14558]
[1727922620118,4.80241,2394.8,2394.3,4.96912]
[1727922621513,4.80241,2394.8,2394.3,9.14562]
[1727922622040,4.80241,2394.8,2394.3,4.96912]
[1727922622333,8.97823,2394.8,2394.3,4.96912]
[1727922622687,4.80241,2394.8,2394.3,4.96912]
[1727922625154,4.80241,2394.8,2394.3,5.88371]
[1727922625343,4.17555,2394.9,2394.4,4.17632]
[1727922625505,4.17573,2394.8,2394.4,4.17632]
[1727922625831,4.17573,2394.8,2394.3,0.7927]
[1727922625832,4.17573,2394.8,2394.3,4.96926]
[1727922626542,4.17573,2394.8,2394.3,4.96919]
[1727922626943,4.17555,2394.9,2394.4,4.17639]
[1727922628248,4.17555,2394.9,2394.3,4.96919]
[1727922628249,4.17581,2394.8,2394.3,4.96919]
[1727922628453,4.17581,2394.8,2394.3,9.14566]
[1727922628745,4.17581,2394.8,2394.3,4.96917]
[1727922628967,4.17581,2394.8,2394.3,0.7927]
[1727922628968,4.17596,2394.7,2394.3,0.7927]
[1727922629320,4.17578,2394.8,2394.3,4.96917]
[1727922629533,8.35165,2394.8,2394.3,4.96917]
[1727922629821,4.17578,2394.8,2394.3,4.96917]
[1727922630030,4.17578,2394.8,2394.3,9.14567]
[1727922630231,4.17555,2394.9,2394.4,4.17639]
[1727922630756,4.17555,2394.9,2394.5,0.7927]
[1727922631122,4.17551,2395.0,2394.5,5.883416]
[1727922631350,7.1752,2395.1,2394.7,4.17588]
[1727922631590,7.1752,2395.1,2394.8,0.8116]
[1727922631902,4.17553,2394.9,2394.6,0.8116]
[1727922633002,4.17572,2394.8,2394.4,4.99629]
[1727922633907,6.07119265,2394.9,2394.4,5.63824601]
[1727922634104,6.07119265,2394.9,2394.5,4.17622]
[1727922635518,10.24686265,2394.9,2394.4,5.63824601]
[1727922635678,10.24684265,2394.9,2394.4,5.63824601]
[1727922636119,4.17578,2394.8,2394.4,0.8199]
[1727922640088,4.17606,2394.6,2394.2,5.00903]
[1727922640719,4.1759,2394.7,2394.2,5.00903]
[1727922640913,4.1759,2394.7,2394.2,9.1857]
[1727922642193,4.17618,2394.6,2394.2,5.00897]
[1727922643222,5.44484265,2394.7,2394.2,5.00897]
[1727922643417,5.44484265,2394.7,2394.2,5.00895]
[1727922643608,5.44484265,2394.7,2394.3,4.17657]
[1727922645436,7.17573,2394.8,2394.4,4.95853]
[1727922645604,4.17573,2394.8,2394.4,4.95853]
[1727922646710,4.17537,2395.0,2394.5,4.17606]
[1727922646918,4.17537,2395.0,2394.7,0.7837]
[1727922647116,8.35084,2395.0,2394.7,0.7837]
[1727922647314,4.17554,2394.9,2394.7,0.7837]
[1727922649807,4.17538,2395.0,2394.7,0.7837]
[1727922649999,7.17528,2395.1,2394.7,0.7837]
[1727922650198,3.0,2395.1,2394.7,5.455559]
[1727922650440,7.39,2395.2,2395.0,4.97974]
[1727922650650,4.17478,2395.4,2395.0,4.97974]
[1727922650836,4.17478,2395.4,2395.0,5.895267]
[1727922651041,4.17454,2395.5,2395.1,4.17518]
[1727922651287,4.17454,2395.5,2395.2,0.8046]
[1727922651450,8.34887,2395.6,2395.2,0.8046]
[1727922651647,4.1745,2395.5,2395.2,0.8046]
[1727922653250,5.44336265,2395.6,2395.2,0.8046]
[1727922653469,4.17467,2395.4,2395.2,0.8046]
[1727922656275,4.17502,2395.2,2394.9,0.7797]
[1727922656456,8.35013,2395.2,2394.9,0.7797]
[1727922657390,4.17502,2395.2,2394.9,0.7797]
[1727922657892,8.35017,2395.2,2394.9,0.7797]
[1727922658466,8.35017,2395.2,2394.6,0.7785]
[1727922658467,4.17572,2394.8,2394.6,0.7785]
[1727922658892,4.17631,2394.5,2394.2,0.7785]
[1727922659193,4.17631,2394.5,2393.8,4.99146]
[1727922659194,4.17643,2394.4,2393.8,4.99146]
[1727922659408,4.17618,2394.6,2393.9,0.8141]
[1727922659710,4.17618,2394.6,2394.2,0.7616]
[1727922659993,4.17616,2394.6,2394.2,0.7616]
[1727922660564,4.17634,2394.5,2394.2,0.7616]
[1727922661266,4.17616,2394.6,2394.2,0.7616]
[1727922661476,4.17642,2394.4,2394.2,0.7616]
[1727922661990,4.17616,2394.6,2394.2,0.7616]
[1727922661991,8.35233,2394.6,2394.2,0.7616]
[1727922662192,4.17626,2394.5,2394.2,0.7616]
[1727922662772,8.35262,2394.5,2394.2,0.7616]
[1727922663071,4.17641,2394.4,2394.2,0.7616]
[1727922663802,4.17626,2394.5,2394.2,0.7616]
[1727922664292,8.35262,2394.5,2394.2,0.7616]
[1727922664699,4.17626,2394.5,2394.2,0.7616]
[1727922665062,4.17643,2394.4,2394.2,0.7616]
[1727922667110,4.17626,2394.5,2394.2,0.7616]
[1727922667419,4.17614,2394.6,2394.2,0.7616]
[1727922668103,4.17607,2394.6,2394.2,1.67316]
[1727922668420,4.17607,2394.6,2394.2,0.7616]
[1727922669978,8.35223,2394.6,2394.2,0.7616]
[1727922670241,4.17629,2394.5,2394.2,0.7616]
[1727922670916,3.6267,2394.7,2394.2,0.7616]
[1727922671063,4.17606,2394.6,2394.2,0.7616]
[1727922671389,7.1759,2394.7,2394.2,4.93832]
[1727922673105,4.17608,2394.6,2394.2,0.7616]
[1727922673708,4.17629,2394.5,2394.2,0.7616]
[1727922674025,4.17649,2394.4,2394.2,0.7616]
[1727922674509,4.17608,2394.6,2394.2,4.93834]
[1727922674694,4.17608,2394.6,2394.3,0.493834]
[1727922674895,4.80236,2394.9,2394.3,4.670344]
[1727922675063,3.6267,2394.9,2394.2,0.7616]
[1727922675270,4.17643,2394.4,2394.2,0.7616]
[1727922675817,4.17616,2394.6,2394.2,0.7616]
[1727922675974,4.17626,2394.5,2394.2,0.7616]
[1727922677102,4.17616,2394.6,2394.2,0.7616]
[1727922677354,4.17582,2394.8,2394.4,4.1764]
[1727922677493,4.17582,2394.8,2394.5,0.7902]
[1727922677675,11.56545,2395.0,2394.5,4.96635]
[1727922677869,4.17556,2394.9,2394.5,4.96635]
[1727922678071,4.17556,2394.9,2394.5,5.880625]
[1727922678515,2.74770163,2395.0,2393.9,5.05295325]
[1727922678712,4.17641,2394.4,2394.2,0.7575]
[1727922678915,4.17658,2394.3,2394.2,0.7575]
[1727922679147,2.74770163,2394.6,2393.9,0.7575]
[1727922679425,4.17695,2394.1,2393.9,0.7575]
[1727922681404,4.1771,2394.0,2393.7,0.7788]
[1727922683194,4.17686,2394.2,2393.7,0.7788]
[1727922683397,4.17712,2394.0,2393.7,0.7788]
[1727922684323,4.17696,2394.1,2393.7,0.7788]
[1727922686330,8.35402,2394.1,2393.7,0.7788]
[1727922686697,4.17696,2394.1,2393.7,0.7788]
[1727922687427,4.17696,2394.1,2393.7,1.692234]
[1727922688626,4.17713,2394.0,2393.7,1.692234]
[1727922688782,4.17713,2394.0,2393.7,0.7788]
[1727922689219,4.17697,2394.1,2393.6,4.17779]
[1727922689534,4.17719,2394.0,2393.5,4.98446]
[1727922690028,4.17731,2393.9,2393.5,4.98446]
[1727922690225,4.17731,2393.9,2393.5,5.900706]
[1727922690519,4.17729,2393.9,2393.5,5.900706]
[1727922691443,4.17719,2394.0,2393.6,4.17777]
[1727922692334,8.3544,2394.0,2393.5,5.900706]
[1727922692493,4.17719,2394.0,2393.5,5.900706]
[1727922692838,4.17719,2394.0,2393.6,4.17778]
[1727922693630,4.17719,2394.0,2393.5,5.900646]
[1727922693820,4.17719,2394.0,2393.5,10.078526]
[1727922694595,4.17719,2394.0,2393.5,5.900626]
[1727922694895,4.17695,2394.1,2393.6,4.7678526]
[1727922695094,4.17691,2394.2,2393.8,0.8196]
[1727922695346,2.74770163,2394.8,2393.9,0.8196]
[1727922695525,0.43715369,2395.0,2393.7,2.74770163]
[1727922695526,4.1761,2394.6,2394.2,0.8196]
[1727922695842,4.80264,2394.7,2394.2,0.8196]
[1727922696034,4.17594,2394.7,2394.2,4.99628]
[1727922696399,8.35192,2394.7,2394.2,4.99628]
[1727922696639,0.6267,2394.9,2394.2,4.99628]
[1727922696640,11.56529,2395.1,2394.4,4.17638]
[1727922696795,4.17537,2395.0,2394.5,5.0079]
[1727922697190,4.17537,2395.0,2394.5,4.25971539]
[1727922697428,0.6267,2395.3,2394.7,0.8317]
[1727922697632,4.17542,2395.0,2394.7,0.8317]
[1727922698044,4.1752,2395.1,2394.7,0.8317]
[1727922698399,4.1751,2395.2,2394.7,0.8317]
[1727922699843,4.1751,2395.2,2394.7,5.00758]
[1727922700647,4.17519,2395.1,2394.7,5.00758]
[1727922700820,4.17538,2395.0,2394.7,0.8317]
[1727922701021,4.17519,2395.1,2394.7,0.8317]
[1727922702819,8.35051,2395.1,2394.7,0.8317]
[1727922703818,4.17567,2394.9,2394.7,0.8317]
[1727922704020,4.17571,2394.8,2394.7,0.8317]
[1727922705144,4.17563,2394.9,2394.7,0.8317]
[1727922706459,8.35128,2394.9,2394.7,0.8317]
[1727922706610,8.35128,2394.9,2394.5,0.7597]
[1727922706850,8.35125,2394.9,2394.5,0.7597]
[1727922708202,4.17562,2394.9,2394.5,0.7597]